bitfinex-derivatives/quotes_ETHF0:USTF0_20250404
["timestamp","ask_amount","ask_price","bid_price","bid_amount"]
[1743766132016,1.4284,1769.3,1769.1,2.5314]
[1743766132017,3.2078,1769.2,1769.1,2.5314]
[1743766132513,3.2078,1769.4,1769.3,1.13048]
[1743766132916,3.2078,1769.4,1769.3,5.64148]
[1743766133611,0.00848081,1769.5,1769.4,1.13041]
[1743766134014,2.50848081,1769.5,1769.0,0.7718]
[1743766134209,3.2078,1769.1,1768.7,0.8286]
[1743766134412,3.2078,1768.8,1768.7,1.95946]
[1743766134614,3.2078,1768.8,1768.7,47.28446]
[1743766134820,3.2078,1768.8,1768.7,1.95946]
[1743766135005,3.2078,1768.8,1768.5,4.524]
[1743766135317,3.2078,1768.6,1768.5,5.65495]
[1743766136115,3.2078,1768.6,1768.5,5.65499]
[1743766136315,3.2078,1768.6,1768.5,4.524]
[1743766136515,3.2078,1768.6,1768.5,5.65499]
[1743766136712,3.2078,1768.6,1768.5,4.524]
[1743766136912,4.33872,1768.6,1768.5,4.524]
[1743766137112,1.13099,1768.5,1768.4,0.00848081]
[1743766137317,1.431,1768.5,1768.4,0.00848081]
[1743766137512,2.56199,1768.5,1768.4,0.00848081]
[1743766138812,1.13118,1768.2,1768.1,35.612]
[1743766139012,3.2078,1768.2,1767.8,0.8591]
[1743766139211,3.2078,1768.2,1767.5,36.4652]
[1743766139212,3.2078,1767.9,1767.5,35.616]
[1743766139413,1.4316,1768.1,1767.5,35.616]
[1743766139414,1.13132,1768.0,1767.7,1.13147]
[1743766139609,3.2078,1768.1,1768.0,1.13131]
[1743766139817,3.2078,1768.1,1767.9,5.66132]
[1743766140021,3.2078,1768.1,1768.0,1.13131]
[1743766140510,0.00848081,1768.2,1768.1,1.13124]
[1743766140711,0.00848081,1768.2,1768.1,0.8252]
[1743766140918,1.13966081,1768.2,1768.1,0.8252]
[1743766141113,0.00848081,1768.2,1768.0,1.13128]
[1743766141313,0.00848081,1768.2,1768.1,1.13124]
[1743766141720,0.00848081,1768.2,1768.1,3.63124]
[1743766142017,3.2078,1768.3,1768.1,5.32811]
[1743766142217,3.2078,1768.3,1768.2,5.67518]
[1743766142610,3.2078,1768.3,1768.1,1.13124]
[1743766142918,1.13127,1768.1,1767.9,0.00848081]
[1743766143118,4.33907,1768.1,1767.9,1.13984081]
[1743766143418,1.13131,1768.0,1767.9,0.00848081]
[1743766143812,1.4785,1768.0,1767.9,0.00848081]
[1743766144008,2.82844,1767.9,1767.5,35.616]
[1743766144210,9.55208,1768.2,1767.1,0.9013]
[1743766144211,6.03674,1767.6,1767.1,0.9013]
[1743766144410,3.2078,1767.3,1766.8,40.8]
[1743766144618,3.2078,1766.9,1766.2,2.83107]
[1743766144824,3.2078,1766.9,1766.4,2.83084]
[1743766145017,3.2078,1766.9,1766.5,48.6858]
[1743766145217,0.00848081,1766.8,1766.5,40.80848081]
[1743766145514,0.00848081,1766.8,1766.7,1.13214]
[1743766145718,3.21628081,1766.8,1766.6,6.12172762]
[1743766145918,0.00848081,1766.8,1766.7,2.56184]
[1743766146128,3.21628081,1766.8,1766.6,0.01902762]
[1743766146419,3.21628081,1766.8,1766.6,1.15119762]
[1743766146615,3.21628081,1766.8,1766.7,1.42362762]
[1743766146920,4.34836081,1766.8,1766.7,0.01902762]
[1743766147116,6.84836081,1766.8,1766.7,0.01902762]
[1743766147320,6.56028081,1766.8,1766.5,0.00848081]
[1743766147521,3.2078,1766.6,1766.5,0.00848081]
[1743766147718,0.00848081,1766.8,1766.5,0.00848081]
[1743766148023,0.00848081,1766.8,1766.6,36.76216]
[1743766148211,0.00848081,1766.8,1766.7,42.2046]
[1743766148717,3.21628081,1766.8,1766.5,0.00848081]
[1743766149019,3.2078,1766.6,1766.5,0.00848081]
[1743766149224,4.34,1766.6,1766.5,0.00848081]
[1743766149518,6.84,1766.6,1766.5,0.00848081]
[1743766149712,4.34,1766.6,1766.5,0.00848081]
[1743766149915,5.8654,1766.6,1766.5,0.00848081]
[1743766150316,1.13248,1766.2,1766.0,35.64]
[1743766150516,3.2078,1766.5,1766.0,35.64]
[1743766150818,4.7332,1766.4,1766.1,4.74]
[1743766151019,0.844,1766.7,1766.1,9.11112]
[1743766151214,1.5254,1766.6,1766.5,1.13224]
[1743766151419,1.5254,1766.6,1766.1,9.11109]
[1743766151617,3.2078,1766.5,1766.3,1.13236]
[1743766151816,3.2078,1766.5,1766.3,1.13235]
[1743766152017,3.2078,1766.5,1766.0,35.64]
[1743766152018,6.03849,1766.5,1766.0,35.64]
[1743766152220,3.2078,1766.1,1765.9,1.5398]
[1743766152419,4.34034,1766.1,1765.9,1.5398]
[1743766152822,1.5328,1766.0,1765.9,1.5398]
[1743766153122,3.2078,1766.1,1765.9,2.67243]
[1743766153526,3.2078,1766.1,1765.9,1.5398]
[1743766153726,4.34034,1766.1,1765.9,1.5398]
[1743766154021,2.83164,1765.9,1765.0,2.83295]
[1743766154213,3.2078,1765.6,1765.1,2.83291]
[1743766154417,3.2078,1765.8,1765.3,2.8326]
[1743766154714,0.00848081,1765.5,1765.3,1.13299]
[1743766154917,0.00848081,1765.5,1765.4,1.5367]
[1743766155126,0.00848081,1765.5,1765.4,2.66967]
[1743766155618,8.1e-07,1765.5,1765.4,5.16967]
[1743766155818,8.1e-07,1765.5,1765.4,10.81577]
[1743766156017,8.1e-07,1765.5,1765.4,6.06677]
[1743766156223,3.2078,1766.0,1765.9,1.13265]
[1743766156924,4.7492,1766.2,1766.0,1.13255]
[1743766157119,4.7492,1766.2,1766.0,2.58015]
[1743766157426,5.88168,1766.2,1766.0,1.4476]
[1743766157828,4.7492,1766.2,1766.0,2.58016]
[1743766158229,5.88167,1766.2,1766.0,1.4476]
[1743766158432,4.7492,1766.2,1766.0,1.4476]
[1743766158819,1.13259,1766.0,1765.9,0.00848081]
[1743766159026,4.34039,1766.0,1765.9,0.00848081]
[1743766159221,1.13278,1765.7,1765.6,35.663]
[1743766159427,3.2078,1765.7,1765.6,35.663]
[1743766159831,3.2078,1765.7,1765.6,36.79585]
[1743766160036,4.0664,1766.1,1765.9,1.13264]
[1743766160337,3.2078,1766.1,1766.0,1.3984]
[1743766160731,3.2078,1766.1,1766.0,2.53099]
[1743766161128,4.34032,1766.1,1766.0,1.3984]
[1743766161330,5.76122,1766.1,1766.0,1.3984]
[1743766161531,4.6287,1766.1,1766.0,1.3984]
[1743766161930,4.6287,1766.1,1766.0,2.53099]
[1743766162132,5.61178081,1766.3,1766.0,1.3984]
[1743766162340,3.2078,1766.1,1766.0,1.3984]
[1743766163439,1.13272,1765.8,1765.7,1.4912]
[1743766163634,4.34052,1765.8,1765.7,1.4912]
[1743766163834,4.7242,1766.0,1765.7,1.4912]
[1743766164040,4.34052,1765.8,1765.7,1.4912]
[1743766164336,6.03962,1765.8,1765.2,1.13308]
[1743766164536,1.13305,1765.3,1765.1,1.13315]
[1743766164735,4.3409,1765.2,1765.1,1.5354]
[1743766164934,4.6378,1765.2,1764.1,3.30638929]
[1743766165134,3.2078,1764.6,1764.5,1.5354]
[1743766165334,0.8833,1765.1,1764.5,2.098]
[1743766165534,3.2078,1764.9,1764.5,2.098]
[1743766165734,3.2078,1764.7,1764.6,0.5626]
[1743766165941,1.43,1765.0,1764.6,0.5626]
[1743766165942,3.2078,1765.0,1764.9,1.13329]
[1743766166337,3.2078,1765.0,1764.8,1.13334]
[1743766166539,3.2078,1765.0,1764.9,1.13329]
[1743766167139,3.2078,1765.3,1764.9,7.56822]
[1743766167339,3.2078,1765.3,1765.2,1.1331]
[1743766168741,0.00848081,1765.4,1765.3,1.13304]
[1743766168942,8.1e-07,1765.4,1765.3,46.27764]
[1743766169149,3.2078,1766.1,1765.6,2.83206]
[1743766169341,3.2078,1766.1,1766.0,1.13259]
[1743766169546,4.6599,1766.1,1766.0,1.13259]
[1743766170148,5.79246,1766.1,1765.7,47.0588]
[1743766170444,3.2078,1765.9,1765.8,1.13272]
[1743766170944,3.2078,1765.9,1765.7,40.80848081]
[1743766171149,1.4466,1765.8,1765.3,35.683]
[1743766171349,3.2078,1765.4,1765.3,36.81604]
[1743766171650,3.2078,1765.6,1765.5,1.13291]
[1743766171837,3.2078,1765.8,1765.7,1.13278]
[1743766172040,1.05268081,1766.2,1765.9,1.13265]
[1743766172041,3.2078,1766.0,1765.9,1.13265]
[1743766172241,3.21628081,1766.2,1766.1,1.13252]
[1743766173039,3.2078,1766.4,1766.3,1.1324]
[1743766173256,3.2078,1766.4,1766.3,5.8634]
[1743766173751,3.2078,1766.5,1766.4,1.13233]
[1743766173944,3.2078,1766.7,1766.5,1.13221]
[1743766174150,3.2078,1766.7,1766.6,1.1322]
[1743766174345,3.2078,1766.7,1766.6,5.8622]
[1743766174845,0.00848081,1766.8,1766.7,1.13214]
[1743766175252,3.2078,1767.3,1767.2,1.13182]
[1743766175454,3.2078,1767.3,1767.2,5.85982]
[1743766175751,3.2078,1767.3,1767.1,40.8]
[1743766175945,3.2078,1767.3,1767.0,35.678]
[1743766176247,3.2078,1767.1,1767.0,36.80995]
[1743766176449,0.00848081,1767.3,1767.2,1.13182]
[1743766176638,0.00848081,1767.3,1767.2,5.85782]
[1743766176848,0.00848081,1767.3,1767.2,4.726]
[1743766177044,0.00848081,1767.3,1767.1,0.00848081]
[1743766177243,4.33962,1767.2,1767.1,0.00848081]
[1743766177451,3.2078,1767.2,1766.3,3.2078]
[1743766177641,3.2078,1766.8,1766.6,1.13216]
[1743766177839,3.2078,1766.8,1766.7,5.86514]
[1743766178042,3.2078,1766.8,1766.7,4.733]
[1743766178242,3.2078,1766.8,1766.7,5.86514]
[1743766178441,1.4172,1767.1,1766.7,5.86514]
[1743766178442,3.2078,1767.1,1766.7,7.233]
[1743766178644,3.2078,1767.1,1767.0,1.13195]
[1743766178850,3.21628081,1767.3,1767.1,1.13184]
[1743766179049,3.21628081,1767.3,1767.2,1.13182]
[1743766179240,3.21628081,1767.3,1767.0,4.778]
[1743766179446,3.21628081,1767.3,1767.2,1.13182]
[1743766179647,0.00848081,1767.3,1767.2,1.13182]
[1743766179847,3.2078,1767.6,1767.5,1.13163]
[1743766180246,1.0228,1768.0,1767.8,1.13141]
[1743766180458,3.2078,1767.9,1767.4,5.91066]
[1743766180650,3.2078,1767.5,1767.4,1.13166]
[1743766180953,3.2078,1767.5,1767.2,35.67]
[1743766181151,0.00848081,1767.8,1767.5,1.13163]
[1743766181354,4.25177181,1768.2,1768.1,1.13124]
[1743766181554,3.2078,1768.3,1768.2,1.13118]
[1743766181748,3.32090298,1768.3,1768.0,4.866]
[1743766181949,3.32090298,1768.3,1768.1,1.13122]
[1743766182255,3.32090298,1768.3,1768.2,1.13118]
[1743766182456,3.32090298,1768.3,1768.1,5.9902]
[1743766182644,3.32090298,1768.3,1768.1,4.859]
[1743766183054,3.32090298,1768.3,1768.1,5.99024]
[1743766183258,3.32090298,1768.3,1768.1,4.859]
[1743766183749,3.32090298,1768.3,1767.6,0.9543]
[1743766183955,3.2078,1768.0,1767.8,1.13141]
[1743766184158,4.631,1768.2,1768.0,1.13125]
[1743766184355,4.631,1768.2,1767.7,2.82873]
[1743766184356,4.631,1768.2,1767.8,7.67046]
[1743766184552,4.631,1768.2,1768.0,1.13127]
[1743766184756,1.4232,1768.2,1767.8,4.842]
[1743766185054,0.11310298,1768.3,1768.2,1.13118]
[1743766185363,1.24426298,1768.3,1768.1,4.835]
[1743766185548,3.2078,1768.2,1768.0,4.846]
[1743766185855,1.4232,1768.1,1767.4,3.2078]
[1743766186051,4.33928,1767.8,1767.5,7.37211]
[1743766186253,3.2078,1767.6,1767.5,1.3965]
[1743766186447,2.55121,1767.7,1767.5,1.3965]
[1743766186646,3.2078,1767.6,1767.5,1.3965]
[1743766186847,3.2078,1767.6,1767.4,4.842]
[1743766187056,4.6275,1767.6,1767.3,35.66048081]
[1743766187259,4.6275,1767.6,1767.4,1.13168]
[1743766187456,3.2078,1767.6,1767.5,1.13163]
[1743766187652,5.75894,1767.8,1767.6,1.13152]
[1743766187959,4.33924,1767.8,1767.7,1.3965]
[1743766188160,3.2078,1767.8,1767.7,2.528]
[1743766188360,4.33924,1767.8,1767.7,1.3965]
[1743766188954,4.33924,1767.8,1767.7,2.528]
[1743766189252,3.2078,1767.8,1767.3,35.66048081]
[1743766189457,3.2078,1767.4,1767.3,36.79218081]
[1743766189655,3.2078,1767.4,1767.3,36.79224081]
[1743766189857,3.2078,1767.4,1767.3,0.00848081]
[1743766190067,3.2078,1767.4,1767.3,1.53238081]
[1743766190258,3.2078,1767.6,1767.3,1.53238081]
[1743766190462,3.2078,1767.6,1767.5,1.13163]
[1743766190654,4.33926,1767.8,1767.5,4.846]
[1743766190855,4.33926,1767.8,1767.6,1.5239]
[1743766191056,3.2078,1767.8,1767.6,2.65545]
[1743766191263,3.2078,1767.8,1767.6,1.5239]
[1743766191462,3.2078,1767.8,1767.7,1.5239]
[1743766191656,1.13142,1767.9,1767.7,1.5239]
[1743766191856,7.45957181,1768.2,1767.8,4.843]
[1743766192058,4.33913,1768.0,1767.9,1.5239]
[1743766192459,1.13137,1767.9,1767.8,45.643]
[1743766192658,2.59517,1767.9,1767.8,4.843]
[1743766192962,5.29263,1768.0,1767.7,1.1315]
[1743766193162,1.13133,1768.0,1767.8,42.2211]
[1743766193356,4.33913,1768.0,1767.9,1.4211]
[1743766193553,8.59080181,1768.2,1767.9,6.2561]
[1743766193756,1.13125,1768.1,1767.9,6.2561]
[1743766193959,7.45957181,1768.2,1768.0,4.832]
[1743766194168,7.45957181,1768.2,1768.1,1.4211]
[1743766194367,2.82845,1767.9,1767.5,4.852]
[1743766194566,1.13153,1767.7,1767.5,6.2731]
[1743766194773,4.33927,1767.8,1767.5,48.2047]
[1743766195072,4.33927,1767.8,1767.5,1.4211]
[1743766195073,1.13156,1767.6,1767.5,1.4211]
[1743766195268,3.2078,1767.8,1767.5,1.4211]
[1743766195464,1.13156,1767.6,1767.5,1.4211]
[1743766195665,1.13156,1767.6,1767.5,6.2831]
[1743766196670,1.5191,1767.7,1767.5,7.41473]
[1743766196867,4.33922,1767.9,1767.5,11.9909]
[1743766197063,6.03624,1767.9,1767.6,4.856]
[1743766197366,1.1315,1767.7,1767.6,4.856]
[1743766197564,1.13163,1767.5,1767.4,40.8]
[1743766197766,4.33933,1767.7,1767.4,45.656]
[1743766197971,4.33931,1767.7,1767.4,40.8]
[1743766198165,2.57325,1767.8,1767.5,4.85]
[1743766198364,4.33919,1767.9,1767.5,4.85]
[1743766198666,3.2078,1767.9,1767.5,4.85]
[1743766198870,1.13156,1767.6,1767.5,4.85]
[1743766199068,3.2078,1767.7,1767.5,4.85]
[1743766199274,1.13156,1767.6,1767.5,4.85]
[1743766199472,1.13163,1767.5,1767.3,4.85048081]
[1743766199771,1.13157,1767.6,1767.3,0.00848081]
[1743766199976,1.4418,1767.6,1767.4,40.8]
[1743766200473,3.2078,1767.5,1767.3,0.00848081]
[1743766200770,2.57349,1767.4,1767.3,0.00848081]
[1743766200967,13.1022,1767.4,1766.2,3.2078]
[1743766201167,3.2078,1766.5,1766.0,36.2104]
[1743766201371,4.34032,1766.1,1766.0,35.644]
[1743766201667,3.2078,1766.3,1766.0,35.644]
[1743766201869,3.2078,1766.5,1766.0,38.8518]
[1743766202173,3.2078,1767.2,1766.4,3.2078]
[1743766202375,3.2078,1767.2,1767.0,1.13192]
[1743766202561,5.582,1767.4,1767.1,1.13188]
[1743766202769,2.3742,1767.4,1767.3,1.13176]
[1743766202965,5.582,1767.4,1767.1,0.00848081]
[1743766203171,12.94864215,1767.2,1767.1,0.00848081]
[1743766203970,11.81682215,1767.2,1767.1,0.00848081]
[1743766204169,12.94864215,1767.2,1767.1,0.00848081]
[1743766204369,14.46674215,1767.2,1767.1,0.00848081]
[1743766204878,1.13201,1766.9,1766.8,35.653]
[1743766205078,3.2078,1767.0,1766.8,35.653]
[1743766205280,8.60902215,1767.2,1766.9,3.2078]
[1743766205477,8.60902215,1767.2,1767.1,4.33968]
[1743766205675,8.60902215,1767.2,1767.1,6.83968]
[1743766205871,8.60902215,1767.2,1767.1,40.8]
[1743766206072,9.74084215,1767.2,1767.1,40.8]
[1743766206282,1.13188,1767.1,1767.0,0.00848081]
[1743766206479,2.82988,1767.0,1766.2,35.655]
[1743766206673,1.1324,1766.3,1766.2,76.455]
[1743766206868,4.3402,1766.3,1766.2,35.655]
[1743766207073,3.2078,1766.3,1766.2,35.655]
[1743766207282,4.3402,1766.3,1766.2,35.655]
[1743766207482,3.2078,1766.3,1766.2,35.655]
[1743766207682,0.00848081,1766.4,1766.3,1.1324]
[1743766208176,0.00848081,1766.4,1766.2,35.655]
[1743766208381,1.1324,1766.3,1766.2,35.655]
[1743766208581,2.6069,1766.3,1766.2,35.655]
[1743766208780,0.00848081,1766.4,1766.2,35.655]
[1743766208977,1.1324,1766.3,1766.2,35.655]
[1743766209177,3.2078,1766.3,1765.8,6.8909]
[1743766209392,1.13265,1765.9,1765.8,4.912]
[1743766209681,1.13264,1766.0,1765.8,4.912]
[1743766209879,1.4745,1766.0,1765.8,4.912]
[1743766210076,4.1889,1766.3,1765.8,7.412]
[1743766210283,1.13261,1766.0,1765.8,4.912]
[1743766210486,1.13269,1765.9,1765.6,35.659]
[1743766210679,3.2078,1765.9,1765.5,1.062]
[1743766210979,1.13288,1765.6,1765.3,0.5664]
[1743766211183,3.2078,1765.7,1765.2,40.573]
[1743766211377,1.4326,1765.6,1765.2,40.573]
[1743766211577,3.2078,1765.5,1765.2,40.573]
[1743766211777,1.13304,1765.3,1765.2,40.573]
[1743766212077,1.13323,1765.0,1764.9,4.906]
[1743766212376,1.4326,1765.2,1764.9,4.906]
[1743766212882,1.13323,1765.0,1764.9,4.906]
[1743766213176,3.2078,1765.1,1764.9,4.906]
[1743766213373,3.2078,1765.1,1764.6,38.8718]
[1743766213578,1.13333,1764.9,1764.7,4.904]
[1743766213976,1.13336,1764.9,1764.6,40.00527]
[1743766214182,1.13338,1764.8,1764.6,35.664]
[1743766214377,1.528,1765.0,1764.7,40.8]
[1743766214577,1.13338,1764.8,1764.6,35.664]
[1743766214771,1.13338,1764.8,1764.4,5.95109913]
[1743766214772,3.2078,1764.7,1764.4,0.00979913]
[1743766214972,1.528,1764.8,1764.4,40.80979913]
[1743766215186,1.13355,1764.5,1764.4,40.80979913]
[1743766215382,1.13354,1764.6,1764.4,0.00979913]
[1743766215582,4.34127,1764.7,1764.4,1.14339913]
[1743766215783,4.34127,1764.7,1764.5,1.4995]
[1743766215784,3.2078,1764.7,1764.5,1.4995]
[1743766216474,1.13349,1764.6,1764.4,0.00979913]
[1743766216676,13.9258,1764.5,1763.3,3.30644742]
[1743766216877,1.13428,1763.4,1763.0,1.4007]
[1743766217074,3.2078,1763.4,1763.0,1.4007]
[1743766217270,3.2078,1763.4,1763.0,4.23697]
[1743766217483,1.403,1763.6,1763.4,0.93475]
[1743766217684,3.2078,1763.5,1763.4,1.13426]
[1743766217979,1.1456,1763.4,1763.3,2.53498]
[1743766218181,1.1456,1763.4,1763.3,1.4007]
[1743766218386,1.1456,1763.4,1763.2,3.2078]
[1743766218684,3.2078,1763.3,1762.9,8.84169473]
[1743766218983,1.1456,1763.4,1763.0,1.4007]
[1743766219283,3.68287,1763.4,1763.0,4.6085]
[1743766219480,1.1456,1763.4,1763.0,6.3937]
[1743766219879,2.66366,1763.3,1763.0,2.53518]
[1743766220075,2.83598,1763.2,1762.9,8.84169473]
[1743766220275,1.13452,1763.0,1762.9,8.84169473]
[1743766220485,6.13352,1763.0,1762.9,8.84169473]
[1743766220680,10.16282,1763.0,1762.9,4.45713716]
[1743766220981,1.13458,1762.9,1762.8,11.81303111]
[1743766221187,11.69968,1762.9,1762.8,8.07383111]
[1743766221377,15.90164,1762.9,1762.0,0.00415561]
[1743766221579,1.1351,1762.1,1762.0,0.00415561]
[1743766222188,14.9143,1762.1,1761.4,1.13554]
[1743766222386,3.2078,1761.8,1761.4,4.7012]
[1743766222586,3.2078,1761.5,1761.0,8.07383111]
[1743766222786,4.6085,1761.7,1761.0,12.70653111]
[1743766223090,3.2078,1761.9,1761.2,3.2078]
[1743766223274,3.2078,1762.0,1761.3,1.4249]
[1743766223481,3.21630726,1762.2,1761.8,3.2078]
[1743766223677,0.00850726,1762.2,1761.9,1.4249]
[1743766223880,0.00850726,1762.2,1762.0,1.13511]
[1743766224084,0.00850726,1762.2,1761.8,1.13525]
[1743766224285,1.1352,1762.0,1761.6,3.2078]
[1743766224486,1.1352,1762.0,1761.9,40.8]
[1743766224487,4.343,1762.0,1761.9,40.8]
[1743766224784,3.2078,1762.0,1761.3,8.3948]
[1743766225089,3.2078,1762.0,1761.4,40.8]
[1743766225386,3.2078,1761.8,1761.4,40.8]
[1743766225582,4.34322,1761.6,1761.2,1.13563]
[1743766225785,1.13561,1761.3,1761.1,1.0298]
[1743766225985,3.2078,1761.3,1761.0,8.07383111]
[1743766226189,1.13564,1761.3,1761.1,40.8]
[1743766226484,1.13568,1761.2,1761.1,40.8]
[1743766226690,1.13574,1761.1,1761.0,8.07383111]
[1743766226886,4.34354,1761.1,1761.0,8.07383111]
[1743766227286,5.7078,1761.1,1760.3,2.84065]
[1743766227588,3.2078,1760.6,1760.2,3.2078]
[1743766227884,3.2078,1760.3,1760.1,1.13633]
[1743766228084,3.2078,1760.6,1760.2,1.4399]
[1743766228385,1.13591,1760.9,1760.6,1.13606]
[1743766228592,1.4176,1761.1,1760.7,2.61675]
[1743766228787,0.00850726,1760.9,1760.8,1.1359]
[1743766228991,3.2078,1761.4,1760.9,1.4808]
[1743766229181,3.2078,1761.7,1760.9,3.2078]
[1743766229381,3.2078,1761.1,1760.4,3.2078]
[1743766229689,3.2078,1760.5,1759.8,2.16755]
[1743766229887,4.34395,1760.5,1760.1,1.13638]
[1743766230189,1.13638,1760.1,1760.0,0.00850726]
[1743766230391,3.21630726,1760.3,1760.0,0.00850726]
[1743766230591,3.2078,1760.8,1760.2,3.2078]
[1743766230888,1.0529,1761.4,1760.4,6.04829]
[1743766230889,3.2078,1761.1,1760.4,6.04829]
[1743766231194,3.2078,1761.1,1760.5,1.4808]
[1743766231491,4.6254,1761.3,1760.8,3.2078]
[1743766231786,3.2078,1761.5,1760.9,6.8518]
[1743766231989,1.13574,1761.1,1760.9,6.8518]
[1743766232388,1.1358,1761.0,1760.9,6.8518]
[1743766232591,0.00850726,1761.2,1760.9,6.8518]
[1743766232991,0.00850726,1761.2,1761.0,3.2078]
[1743766233195,0.00850726,1761.2,1761.1,6.8398]
[1743766233394,0.00850726,1761.2,1761.1,1.3958]
[1743766233595,0.00850726,1761.2,1761.1,6.8378]
[1743766233799,0.00850726,1761.2,1761.1,10.47354]
[1743766233990,4.34307,1761.9,1761.4,1.13553]
[1743766234191,1.24882026,1761.8,1761.5,1.3958]
[1743766234399,0.11352026,1761.8,1761.5,47.6278]
[1743766234599,3.2078,1761.7,1761.5,47.6278]
[1743766234795,0.11352026,1761.8,1761.5,47.6278]
[1743766235105,0.12202752,1761.8,1761.6,1.13539]
[1743766235395,0.12202752,1761.8,1761.7,1.5264]
[1743766235993,3.32982752,1761.8,1761.7,1.5264]
[1743766236192,0.12202752,1761.8,1761.7,1.5264]
[1743766236393,3.32982752,1761.8,1761.0,2.83952]
[1743766236592,3.2078,1761.6,1761.4,1.5264]
[1743766237090,0.12202752,1761.8,1761.7,1.13535]
[1743766237289,1.26922752,1761.8,1761.7,1.13535]
[1743766237488,1.26922752,1761.8,1761.7,3.63535]
[1743766239101,5.74087,1762.5,1762.2,1.13502]
[1743766239299,3.2078,1762.7,1762.6,1.13477]
[1743766239699,1.13477,1762.6,1762.5,1.4627]
[1743766240000,1.13481,1762.6,1762.3,6.55593]
[1743766240200,3.2078,1762.4,1762.1,6.8787]
[1743766240396,3.2078,1762.4,1761.8,2.83814]
[1743766240397,1.1349,1762.4,1762.3,0.00850726]
[1743766240596,11.5358,1762.4,1761.6,1.13539]
[1743766240798,3.2078,1761.7,1761.2,3.2078]
[1743766241101,1.13555,1761.4,1761.3,1.4567]
[1743766241304,3.2078,1761.4,1761.3,1.13561]
[1743766241504,3.2078,1761.6,1761.1,2.83929]
[1743766241704,3.2078,1761.6,1761.3,1.13556]
[1743766242005,2.83825,1761.8,1761.3,1.13561]
[1743766242006,3.2078,1761.4,1761.3,1.13561]
[1743766242201,3.2078,1761.4,1761.2,1.14414726]
[1743766242400,1.13561,1761.3,1761.2,0.00850726]
[1743766242905,4.3434,1761.4,1761.2,1.14417726]
[1743766243200,0.00850726,1761.5,1761.2,0.00850726]
[1743766243403,3.2078,1761.4,1761.2,0.00850726]
[1743766243601,0.00850726,1761.5,1761.4,1.13555]
[1743766243900,3.2078,1762.1,1761.4,3.2078]
[1743766244102,4.3432,1761.7,1761.5,5.41]
[1743766244297,3.2078,1761.7,1761.2,0.00850726]
[1743766244497,3.2078,1761.4,1761.3,1.13555]
[1743766244695,4.34332,1761.5,1761.2,1.14413726]
[1743766244895,3.2078,1761.3,1761.2,0.00850726]
[1743766245303,6.84341,1761.3,1761.2,0.00850726]
[1743766245510,6.84341,1761.3,1760.1,3.2078]
[1743766245511,12.67141,1761.3,1760.1,3.2078]
[1743766245803,6.04894,1760.0,1758.7,0.09887052]
[1743766245996,3.2078,1759.7,1758.8,3.41187]
[1743766246197,3.2078,1759.6,1758.9,40.8]
[1743766246400,3.2078,1759.8,1759.7,1.13664]
[1743766246610,3.2078,1759.8,1759.5,5.608]
[1743766246804,3.2078,1759.8,1759.6,1.14517726]
[1743766247002,3.2078,1759.8,1759.7,40.81656079]
[1743766247195,3.2078,1759.8,1759.7,0.01656079]
[1743766247506,1.13664,1759.7,1759.6,7.27e-06]
[1743766247700,1.13705,1759.1,1758.8,40.8]
[1743766247900,4.345,1758.9,1758.6,0.17007486]
[1743766248106,3.2078,1759.1,1758.8,3.2078]
[1743766248294,3.2078,1759.2,1758.8,3.2078]
[1743766248498,3.2078,1759.1,1758.7,5.634]
[1743766248699,3.2078,1759.0,1758.9,1.13716]
[1743766248898,2.2737,1759.2,1759.1,1.13703]
[1743766249203,3.2078,1760.0,1759.1,3.2078]
[1743766249506,0.00850726,1759.7,1759.3,3.2078]
[1743766249710,0.00850726,1759.7,1759.6,1.13671]
[1743766250003,0.00850726,1759.7,1759.6,6.84671]
[1743766250206,3.3035,1760.1,1760.0,1.13645]
[1743766250397,3.2078,1760.8,1760.7,1.136]
[1743766250595,3.2078,1760.8,1759.7,0.5688]
[1743766250596,3.32138473,1760.8,1760.5,8.9298]
[1743766250801,36.25006497,1762.3,1760.7,3.2078]
[1743766250802,3.2078,1761.5,1760.7,3.2078]
[1743766251007,1.13558,1761.4,1760.9,3.2078]
[1743766251205,3.2078,1761.7,1761.3,3.2078]
[1743766251406,3.2078,1761.9,1761.5,3.2078]
[1743766251611,1.13535,1761.7,1761.5,3.2078]
[1743766251802,0.00850726,1761.7,1761.4,8.9368]
[1743766252000,0.00850726,1761.7,1761.4,5.729]
[1743766252208,0.00850726,1761.7,1761.6,3.2078]
[1743766252506,0.00850726,1761.7,1761.6,4.34322]
[1743766252810,3.2078,1762.3,1761.6,5.7078]
[1743766253009,3.2078,1762.7,1762.0,0.9377]
[1743766253208,3.2078,1762.7,1762.6,1.13477]
[1743766253509,3.2078,1763.1,1762.6,52.56564]
[1743766253710,3.2078,1763.4,1763.2,1.13438]
[1743766253903,3.2078,1763.8,1763.2,5.72]
[1743766254104,3.2078,1764.0,1763.4,3.2078]
[1743766254301,0.00850726,1763.5,1763.4,4.34206]
[1743766254503,3.2078,1764.0,1763.5,2.83536]
[1743766254700,3.2078,1764.0,1763.9,1.13394]
[1743766254910,20.24157624,1765.2,1763.9,5.729]
[1743766255106,20.24157624,1765.2,1764.4,4.34142]
[1743766255107,3.2078,1764.9,1764.4,4.34142]
[1743766255414,7.64645906,1764.5,1764.0,6.43517117]
[1743766255614,10.85425906,1764.5,1764.1,40.8]
[1743766255807,3.2078,1764.3,1763.8,5.754]